Cogmind - Beta 15 @@@ ROGUE MODE // 2025.06.06 @ 23:32:14 Player: Duduxx Result: Destroyed by as-23359 with Assembled Blade Performance ------------- Evolutions (0) 0 Regions Visited (2) 400 Robots Destroyed (9) 45 Value Destroyed (188) 188 Prototype IDs (0) 0 Alien Tech Used (0) 0 Bonus (0) 0 TOTAL SCORE: 633 Bonus ------- None Cogmind --------- Core Integrity 0/250 Matter 291/300 Energy 122/125 System Corruption 0% Temperature Cool (0) Movement Hovering (77) Location -10/Mines Parts ------- > --- POWER (1) -------- Light Ion Engine > --- PROPULSION (2) --- Combat Airjet Combat Airjet > --- UTILITY (2) ------ Heat Sink Small Storage Unit > --- WEAPON (2) ------- Medium Laser Mini Grenade Launcher > --- INVENTORY (8) ---- Light Treads Wheel Compact Wheel Large Storage Unit Mining Laser Peak State ------------ > --- POWER ------------ Light Ion Engine > --- PROPULSION ------- Combat Airjet Combat Airjet > --- UTILITY ---------- Heat Sink Small Storage Unit > --- WEAPON ----------- Medium Laser Mini Grenade Launcher > --- INVENTORY -------- Light Treads Compact Wheel Large Storage Unit Mining Laser [Rating: 16] Favorites ----------- Power Ion Engine Engine Ion Engine Propulsion Light Treads Treads Light Treads Wheel Compact Wheel Hover Unit Combat Airjet Utility Improved Terrain Scanner Device Improved Terrain Scanner Storage Large Storage Unit Weapon Medium Laser Energy Gun Medium Laser Launcher Mini Grenade Launcher Build | -11 -10 -10 ------- Run | Yrd Mat Min Slots Evolved . | . . . Power . | . . . Propulsion . | . . . Utility . | . . . Weapon . | . . . Parts Attached 16 | 7 3 6 Power 3 | 1 . 2 Engine 3 | 1 . 2 Core . | . . . Reactor . | . . . Propulsion 6 | 2 2 2 Treads 2 | 2 . . Leg . | . . . Wheel 2 | . 2 . Hover 2 | . . 2 Flight . | . . . Utility 4 | 2 1 1 Device 2 | 1 . 1 Storage 2 | 1 1 . Processor . | . . . Hackware . | . . . Protection . | . . . Artifact . | . . . Weapon 3 | 2 . 1 Energy Gun 2 | 2 . . Energy Cannon . | . . . Ballistic Gun . | . . . Ballistic Cannon . | . . . Launcher 1 | . . 1 Special Weapon . | . . . Impact Weapon . | . . . Slashing Weapon . | . . . Piercing Weapon . | . . . Special Melee Weapon . | . . . Unidentified Prototypes . | . . . Parts Lost 5 | . . 5 Power 2 | . . 2 Propulsion 1 | . . 1 Utility 1 | . . 1 Weapon 1 | . . 1 Highest Loss Streak 4 | . . 4 To Critical Strikes . | . . . Average Backups 3 | 2 3 4 Power . | . 1 . Propulsion 1 | 1 1 1 Utility . | . . 1 Weapon . | . . 1 Tool/Special . | . . . Unused Backups 3 | . 1 2 Power 1 | . 1 . Propulsion 2 | . . 2 Utility . | . . . Weapon . | . . . Tool/Special . | . . . Average Slot Usage (%) 93 | . 98 83 Engine 13 | . 14 11 Treads 14 | . 22 . Wheel 8 | . 4 15 Hover 3 | . . 8 Device 12 | . 14 10 Storage 14 | . 14 14 Energy Gun 23 | . 28 16 Launcher 2 | . . 5 Peak Build Rating 16 | 9 9 16 Average Rating 8 | 5 8 9 On Entrance 6 | . 9 9 Naked Turns . | . . . Heaviest Build 29 | 14 29 29 Greatest Support 40 | 40 40 26 Greatest Overweight (x) 1 | . 1 1 Average Overweight (x) . | . . . Largest Inventory Capacity 15 | 8 15 15 Average Capacity 11 | 7 13 12 Most Carried 6 | 3 5 6 Average Carried 3 | 2 3 4 Final Capacity 15 | 8 15 8 Final Carried 5 | 3 5 5 Class Distribution -------------------- 83% | Mutant 16% | Scavenger-Mutant Dominant Class ---------------- Mutant | -10/Materials Scavenger-Mutant | -10/Mines Resources | -11 -10 -10 ----------- Run | Yrd Mat Min Matter Collected 406 | 270 40 96 Remotely . | . . . Salvage Created 371 | 104 204 63 Parts 24 | 3 17 4 Haulers Intercepted . | . . . Recyclers Shooed . | . . . Parts Field Recycled . | . . . Retrieved Matter . | . . . Parts Self-Destructed . | . . . Prevented . | . . . Kills | -11 -10 -10 ------- Run | Yrd Mat Min Combat Hostiles Destroyed 9 | . 4 5 Guns 7 | . 4 3 AOE 2 | . . 2 Classes Destroyed 6 | 2 3 1 Builder 2 | . 1 1 Tunneler 1 | 1 . . Recycler 1 | 1 . . Watcher 1 | . 1 . Grunt 4 | . 4 . Assembled 5 | . . 5 Best Kill Streak 5 | 2 5 3 Combat Bots Only 2 | . 2 2 Max Kills in Single Turn 1 | 1 1 1 Gunslinging . | . . . Exploded 1 | . . 1 Melee . | . . . Uniques/NPCs Destroyed . | . . . Combat | -11 -10 -10 -------- Run | Yrd Mat Min Hostile Shots Fired 57 | . 27 30 Missed 16 | . 7 9 Hits 41 | . 20 21 Melee 4 | . . 4 Projectile 37 | . 20 17 Damage Taken 670 | . 239 431 Core 252 | . 39 213 Absorbed by Shields . | . . . Core Remaining (%) 100 | 100 . . Volleys Fired 48 | 9 18 21 Largest 2 | 2 2 2 Hottest 90 | 90 90 90 Shots Fired 75 | 18 31 26 Gun 71 | 18 31 22 Cannon . | . . . Launcher 4 | . . 4 Special . | . . . Kinetic . | . . . Thermal 71 | 18 31 22 Explosive 4 | . . 4 Electromagnetic . | . . . Robot Hit Streak 6 | 2 6 6 Robot Miss Streak 4 | 3 4 3 Penetration Max . | . . . Secondary Targets 1 | . 1 . Max Gunslinging Chain 1 | . 1 . Shots Hit Robots 43 | 9 18 16 Core Hits 30 | 3 13 14 Critical Kills . | . . . Critical Parts Destroyed . | . . . Critical Strikes 2 | . 2 . Burn 2 | . 2 . Melee Attacks . | . . . Impact . | . . . Slashing . | . . . Piercing . | . . . Sneak Attacks . | . . . Combat Hostiles . | . . . Follow-up Attacks . | . . . Damage Inflicted 661 | 114 242 305 Guns 532 | 114 242 176 Cannons . | . . . Explosions 125 | . . 125 Melee . | . . . Ramming 4 | . . 4 Kinetic . | . . . Thermal 532 | 114 242 176 Explosive 125 | . . 125 Electromagnetic . | . . . Impact . | . . . Slashing . | . . . Piercing . | . . . Highest Corruption . | . . . Average Corruption . | . . . Corruption Purged . | . . . Corruption Blocked . | . . . Overload Shots . | . . . Overflow Damage 10 | . . 10 Projectiles . | . . . Explosions 10 | . . 10 Melee . | . . . Knockbacks . | . . . Impact . | . . . Kinetic . | . . . Secondary . | . . . Self-Inflicted Damage 42 | . . 42 Shots 2 | . . 2 Rammed 3 | . . 3 Targets Rammed 3 | . . 3 Kicked . | . . . Crushed . | . . . Highest Temperature 282 | 90 282 60 Average Temperature 67 | 34 115 21 Received Heat Transfer 132 | . 132 . Effects 2 | . 2 . Interference 2 | . 2 . Siege Activations . | . . . Martial Activations . | . . . Shielding Activations . | . . . Robots Disrupted . | . . . Combat Hostiles . | . . . Robots Corrupted . | . . . Combat Hostiles . | . . . Parts Fried . | . . . Impact Corruptions . | . . . Robots Melted . | . . . Combat Hostiles . | . . . Parts Melted 2 | . 2 . Heat Transferred 1597 | 298 781 518 Parts Sabotaged . | . . . Parts Stolen . | . . . Parts Stripped . | . . . Power Chain Reactions . | . . . Alert | -11 -10 -10 ------- Run | Yrd Mat Min Maximum Alert Level . | . . . Low Security (%) 100 | 100 100 100 Level 1 . | . . . Level 2 . | . . . Level 3 . | . . . Level 4 . | . . . Level 5 . | . . . High Security . | . . . Max Security . | . . . Peak Influence 87 | 10 87 37 Initial 22 | . . 22 Average 16 | . 28 7 Influence Increases 182 | 10 127 45 Destroy 0b10 Robot/C 80 | . 80 . Destroy 0b10 Robot/NC 25 | 10 10 5 Destroy Leader 22 | . 22 . Destroy Structure 25 | . . 25 Partial Spotted 15 | . . 15 Lose Combat Pursuer 15 | . 15 . Influence Decreases 175 | 10 70 95 Entered New Map 35 | . . 35 Time Decay 122 | 10 70 42 Lost Part 18 | . . 18 Squads Dispatched 2 | . 2 . Investigation 1 | . 1 . Extermination . | . . . Reinforcement 1 | . 1 . Assault . | . . . Garrison . | . . . Intercept . | . . . Searches Triggered . | . . . Construction Impeded . | . . . Haulers Reinforced . | . . . Active Scanning Responses . | . . . Cargo Convoy Interrupts . | . . . Stealth | -11 -10 -10 --------- Run | Yrd Mat Min Distress Signals . | . . . Communications Jammed . | . . . Distress Signals . | . . . Times Spotted 29 | . 8 21 Peak Tracking Total 19 | . 4 19 Tactical Retreats 3 | . 1 2 Traps | -11 -10 -10 ------- Run | Yrd Mat Min Traps Triggered 2 | . 2 . Indirectly . | . . . Trap Hack Attempts . | . . . Triggered . | . . . Disarmed . | . . . Reprogrammed . | . . . Reused . | . . . Traps Extracted . | . . . Installed . | . . . Triggered . | . . . Machines | -11 -10 -10 ---------- Run | Yrd Mat Min Machines Disabled . | . . . Max in Single Turn . | . . . Machines Repaired . | . . . Machines Dismantled . | . . . Machines Sabotaged . | . . . Overloaded Fab Kills . | . . . Hacking | -11 -10 -10 --------- Run | Yrd Mat Min Machines Accessed 1 | . 1 . Terminals 1 | . 1 . Fabricators . | . . . Repair Stations . | . . . Recycling Units . | . . . Scanalyzers . | . . . Garrison Access . | . . . Total Hacks 1 | . 1 . Successful 1 | . 1 . Failed . | . . . Catastrophic . | . . . Database Lockouts . | . . . Manual 1 | . 1 . Terminals 1 | . 1 . Fabricators . | . . . Repair Stations . | . . . Recycling Units . | . . . Scanalyzers . | . . . Garrison Access . | . . . Terminal Hacks 1 | . 1 . Recall Investigation 1 | . 1 . Fabricator Hacks . | . . . Repair Station Hacks . | . . . Recycling Unit Hacks . | . . . Scanalyzer . | . . . Garrison Access Hacks . | . . . Unauthorized Hacks . | . . . Terminals . | . . . Fabricators . | . . . Repair Stations . | . . . Recycling Units . | . . . Scanalyzers . | . . . Garrison Access . | . . . Data Cores Recovered . | . . . Used . | . . . Hacking Detections . | . . . Full Trace Events . | . . . Feedback Events . | . . . Feedback Blocked . | . . . Robot Schematics Acquired . | . . . Robots Built . | . . . Authchips . | . . . Time . | . . . Total Robot Build Rating . | . . . Part Schematics Acquired . | . . . Parts Built . | . . . Authchips . | . . . Time . | . . . Total Part Build Rating . | . . . Parts Repaired . | . . . Time . | . . . Parts Recycled . | . . . Recycled Matter . | . . . Retrieved Matter . | . . . Retrieved Components . | . . . Parts Scanalyzed . | . . . Part Schematics Acquired . | . . . Parts Damaged . | . . . Bothacking | -11 -10 -10 ------------ Run | Yrd Mat Min Used RIF Installer . | . . . Robots Hacked . | . . . Non-combat . | . . . Combat . | . . . Robot Hacks Applied . | . . . Relay Couplers Released . | . . . Fabnet Peak Effective % . | . . . Robots Rewired . | . . . Allies Hacked . | . . . Hacks Repelled . | . . . Allies | -11 -10 -10 -------- Run | Yrd Mat Min Total Allies . | . . . Largest Group . | . . . Highest-Rated Group . | . . . Highest-Rated Ally . | . . . Total Orders . | . . . Ally Attacks . | . . . Total Damage . | . . . Kills . | . . . Allies Corrupted . | . . . Allies Melted . | . . . Intel | -11 -10 -10 ------- Run | Yrd Mat Min Active Infowar (turns) 421 | 22 326 73 Terrain 421 | 22 326 73 Robot Analysis Total . | . . . Derelict Logs Recovered . | . . . Drone Launches . | . . . Drone Recoveries . | . . . Exploration | -11 -10 -10 ------------- Run | Yrd Mat Min Turns Passed 650 | 143 326 181 Spaces Moved 374 | 67 181 126 Core 3 | 3 . . Treads 200 | 64 136 . Legs . | . . . Wheels 115 | . 45 70 Hover 56 | . . 56 Flight . | . . . Fastest Speed 50 | 50 105 77 Average Speed 131 | 155 148 93 Slowest Speed 240 | 160 240 115 Overloaded Moves . | . . . Propulsion Burnouts . | . . . Robots Hopped . | . . . Potential Cave-ins . | . . . Cave-ins Triggered . | . . . Exploration Rate (%) 22 | 6 35 27 Regions Visited 2 Branch Regions 1 Pre-discovered Areas . | . . . Known Exits Taken . | . . . Unknown Exits Taken 2 | 1 1 . Scrap Searched 1 | . . 1 Spaces Dug . | . . . Terrain Destroyed 35 | . . 35 Melee . | . . . Projectile . | . . . AOE 35 | . . 35 Terrain Rammed . | . . . Walls Destroyed . | . . . Machines Disabled . | . . . Actions | -11 -10 -10 --------- Run | Yrd Mat Min Total 455 | 85 207 163 Wait . | . . . Move 372 | 66 180 126 Hop . | . . . Pick Up 10 | 3 3 4 Fast Attach 10 | 7 1 2 Attach 6 | . 2 4 Detach 2 | . 1 1 Swap 2 | . 1 1 Drop 2 | . 1 1 Fire 48 | 9 18 21 Melee . | . . . Ram 3 | . . 3 Kick . | . . . Crush . | . . . Escape Stasis . | . . . Rewire . | . . . Trap . | . . . Miscellaneous . | . . . Route ------- -11/Scrapyard -10/Materials (discovered 2 exits: [*Mat] / [*Min]) -10/Mines History --------- Turn | Location | Event 8 | -11/Scrapyard | Discovered new exit (range 15) 144 | -11/Scrapyard | Entered Materials 318 | -10/Materials | Build established: Mutant 387 | -10/Materials | Discovered new exit (range 14) 450 | -10/Materials | Discovered new exit (range 13) 470 | -10/Materials | Entered Mines 474 | -10/Mines | Assembled infested the area 547 | -10/Mines | Core integrity fell below 50% 580 | -10/Mines | Core integrity fell below 20% 606 | -10/Mines | Lost 4 parts (2p1n1u) 651 | -10/Mines | Destroyed by as-23359 with Assembled Blade Last Messages --------------- 00557_ Acquired 7 matter. 00571_ Acquired Mni. Grenade Launcher. 00574_ as-13683 destroyed. 00575_ Ion Engine destroyed. 00581_ as-03408 destroyed. 00583_ Acquired 9 matter. 00585_ Acquired Cmb. Airjet. 00595_ Acquired Lgt. Ion Engine. 00598_ Acquired 5 matter. 00599_ Acquired 54 matter. 00601_ U-05 Engineer destroyed. 00606_ Acquired Wheel. 00607_ Dropped Com. Wheel. 00608_ Acquired Com. Wheel. 00645_ Acquired 10 matter. 00647_ Destroyed Asb. Hover Unit. 00647_ as-27991 destroyed. 00648_ Acquired 10 matter. 00648_ The unstable cave ceiling collapses. 00651_ Acquired 1 matter. Map ----- +----------------------------------------------------+ | ?????????????????????????????????????????????????? | | ?????????????????????????????????????????????????? | | ?????????????????????????????????????????????????? | | ?????????????????????????????????????????????????? | | ?????????????????????????????????????????????????? | | ?????????????????????????????????????????????????? | | ?????????????????????????????????????????????????? | | ?????????????????????????????????????????????????? | | ?????????????????????????????????????????????????? | | ?????????????????????????????????????????????????? | | ?????????????????????????????????????????????????? | | ????????????????????????????????????????????????? | | ??????????????????????????????????????????????? ! | | ???????????????????????????????????########## #?? | | ???????????????????????????????????# #?? | | ??????????#####????????????????????# ######## #?? | | ?????????? #???????????????????# #?????????#?? | | ?????????? ###??????########### #???????????? | | ???????? ?? a #?????# |%!#???????????? | | ??????? ? ?????# ###########???????????? | | ??????? ?# #????# #?????????????????????? | | ???????# ?# #????#=#?????????????????????? | | ???????# " ### a #?###%#?????????????????????? | | ???????# # # %#?????????????????????? | | ????????# !#?????????????????????? | | ????????# % =!@|#?????????????????????? | | ?????????# a a !#?????????????????????? | | ??????????# % a # ##?????????????????????? | | ??????????# ##??????????????????????? | | ??????????# ###????????????????????????? | | ??????????# # #?#????#????????????????????? | | ?#???????? ?### ##??????#????????????????????? | | ?#????????? ???# ########???#?????????????????? | | ???#??????? ???# #?????????????????????? | | ???#???????? ???####### #?????????????????????? | | ?????#?????? #?#???????# #?????? #???????????? | | ????????#???# #?????????# #### ???????? | | ???????###### #???????#?# ???????? | | ####??## #?????????# """ #????????????? | | # ##??# ######????#???## """ ####????????????? | | #### #####???????#?# """ ##???????????????? | | #????????## ###????????????????? | | ####### #????##### ##??????????????????? | | #?????#%#????# ##???????????????????? | | ###????#%#????# ###????????????????????? | | ###??????#%#????#%#######??????????????????????? | | ?????????# #???## ##???????????????????????????? | | ???????#?#!#???## #????????????????????????????? | | ?????????#/#??## ##???????????????????????????? | | ??? ?????#%#??# ####?????#??????????????????? | +----------------------------------------------------+ Best States ------------- Heat Dissipation 35 Energy Generation 10 Energy Capacity 250 Matter Stores 300 Matter Capacity 300 Sight Range 16 Terrain Scan Range 16 Terrain Scan Density 10 Evasion (%) 49 Recoil Reduction 2 Item Schematics ----------------- None Robot Schematics ------------------ None Fabricated ------------ Nothing Repaired ---------- Nothing Alien Tech Used ----------------- None Achievements -------------- None Challenges ------------ None Game ------ Seed MagneticCobblerClaws Manual? 0 Play Time 00:06:33 Cumulative 107.6 hours Start 2025.06.06 @ 23:26:56 End 2025.06.06 @ 23:32:14 Sessions 1 Manual Loads 0 Difficulty Rogue Special Mode None Game No. 210 Rogue 210 Adventurer 0 Explorer 0 Win Type - Total 0 Types 0/0/0/0/0/0/0/0/0/0 Lore% 26 Gallery% 44 Achievement% 35 Wizard Run 0 Options --------- Layout 1 ASCII 0 Keyboard 1 Movement Arrows Keybinds 0 Fullscreen 2 Font 24/Smallcaps Map View 50x35 Zoom Use 0% Tactical HUD 1 Map Filters NONE Filters NONE Steam 1 RUN: 1d7c77fb-165c-4260-b91f-3f0df94cada8